[Event "Titled Tuesday Blitz May 2 Late 2023"]
[White "Tsyhanchuk, Stanislav"]
[Black "Liu, Eric"]
[WhiteFideId "13505130"]
[BlackFideId "30960240"]
[WhiteElo "2173"]
[BlackElo "2094"]
[Result "0-1"]
[Round "10"]
[TimeControl "180+2"]
[Date "2023.05.02"]
[WhiteClock "0:00:17"]
[BlackClock "0:02:02"]

1. c4 {[%clk 0:03:00]}  b6 {[%clk 0:03:00]} 2. Nc3 {[%clk 0:03:00]}  Bb7 {[%clk 0:03:01]} 3. d4 {[%clk 0:03:01]}  e6 {[%clk 0:03:01]} 4. e4 {[%clk 0:03:01]}  h5 {[%clk 0:03:00]} 5. f3 {[%clk 0:03:00]}  h4 {[%clk 0:03:01]} 6. Nh3 {[%clk 0:02:59]}  d6 {[%clk 0:02:59]} 7. Bd3 {[%clk 0:02:59]}  c5 {[%clk 0:02:59]} 8. d5 {[%clk 0:02:58]}  e5 {[%clk 0:03:00]} 9. O-O {[%clk 0:02:56]}  Be7 {[%clk 0:03:00]} 10. Nf2 {[%clk 0:02:56]}  Bg5 {[%clk 0:03:00]} 11. h3 {[%clk 0:02:53]}  Bxc1 {[%clk 0:02:58]} 12. Qxc1 {[%clk 0:02:54]}  Nd7 {[%clk 0:02:57]} 13. f4 {[%clk 0:02:48]}  exf4 {[%clk 0:02:56]} 14. Qxf4 {[%clk 0:02:49]}  Ne5 {[%clk 0:02:57]} 15. Ng4 {[%clk 0:02:49]}  Qe7 {[%clk 0:02:52]} 16. Nxe5 {[%clk 0:02:49]}  dxe5 {[%clk 0:02:53]} 17. Qf2 {[%clk 0:02:36]}  Nf6 {[%clk 0:02:53]} 18. Bc2 {[%clk 0:02:35]}  O-O {[%clk 0:02:48]} 19. Qxh4 {[%clk 0:02:34]}  Nxd5 {[%clk 0:02:48]} 20. Qxe7 {[%clk 0:02:27]}  Nxe7 {[%clk 0:02:49]} 21. Nd5 {[%clk 0:02:27]}  Bxd5 {[%clk 0:02:49]} 22. exd5 {[%clk 0:02:26]}  Nc8 {[%clk 0:02:48]} 23. Rae1 {[%clk 0:02:23]}  f6 {[%clk 0:02:48]} 24. Bf5 {[%clk 0:02:18]}  Nd6 {[%clk 0:02:49]} 25. Be6+ {[%clk 0:02:18]}  Kh7 {[%clk 0:02:49]} 26. g4 {[%clk 0:02:17]}  Nxc4 {[%clk 0:02:49]} 27. g5 {[%clk 0:02:14]}  fxg5 {[%clk 0:02:47]} 28. Bf5+ {[%clk 0:01:57]}  g6 {[%clk 0:02:45]} 29. Be6 {[%clk 0:01:55]}  Rf4 {[%clk 0:02:37]} 30. b3 {[%clk 0:01:52]}  Nd2 {[%clk 0:02:37]} 31. Rxf4 {[%clk 0:01:47]}  gxf4 {[%clk 0:02:38]} 32. Kf2 {[%clk 0:01:45]}  e4 {[%clk 0:02:37]} 33. d6 {[%clk 0:01:38]}  Rd8 {[%clk 0:02:35]} 34. d7 {[%clk 0:01:37]}  Kg7 {[%clk 0:02:33]} 35. Bg4 {[%clk 0:01:35]}  e3+ {[%clk 0:02:31]} 36. Ke2 {[%clk 0:01:34]}  Ne4 {[%clk 0:02:22]} 37. Kf3 {[%clk 0:01:32]}  Nf6 {[%clk 0:02:22]} 38. Rd1 {[%clk 0:01:28]}  g5 {[%clk 0:02:21]} 39. h4 {[%clk 0:01:18]}  gxh4 {[%clk 0:02:12]} 40. Kxf4 {[%clk 0:01:18]}  Nxg4 {[%clk 0:02:13]} 41. Kxg4 {[%clk 0:01:17]}  e2 {[%clk 0:02:13]} 42. Re1 {[%clk 0:01:17]}  Rxd7 {[%clk 0:02:13]} 43. Rxe2 {[%clk 0:01:18]}  Rd4+ {[%clk 0:02:13]} 44. Kh3 {[%clk 0:01:17]}  Kf6 {[%clk 0:02:13]} 45. Rf2+ {[%clk 0:01:10]}  Ke5 {[%clk 0:02:12]} 46. Rf7 {[%clk 0:01:08]}  a5 {[%clk 0:02:12]} 47. Rb7 {[%clk 0:01:07]}  Rd6 {[%clk 0:02:12]} 48. Kxh4 {[%clk 0:01:06]}  Kd4 {[%clk 0:02:13]} 49. Re7 {[%clk 0:01:03]}  Kc3 {[%clk 0:02:12]} 50. Re2 {[%clk 0:01:03]}  b5 {[%clk 0:02:11]} 51. Re5 {[%clk 0:00:56]}  Rc6 {[%clk 0:02:11]} 52. Kg5 {[%clk 0:00:55]}  Kb2 {[%clk 0:02:10]} 53. Re2+ {[%clk 0:00:55]}  Ka3 {[%clk 0:02:11]} 54. Kf4 {[%clk 0:00:54]}  c4 {[%clk 0:02:11]} 55. bxc4 {[%clk 0:00:53]}  Rxc4+ {[%clk 0:02:12]} 56. Ke5 {[%clk 0:00:52]}  Rb4 {[%clk 0:02:12]} 57. Kd5 {[%clk 0:00:45]}  Rb2 {[%clk 0:02:05]} 58. Re8 {[%clk 0:00:31]}  Kxa2 {[%clk 0:02:02]} 59. Kc5 {[%clk 0:00:31]}  a4 {[%clk 0:02:02]} 60. Ra8 {[%clk 0:00:25]}  a3 {[%clk 0:02:02]} 61. Ra5 {[%clk 0:00:22]}  b4 {[%clk 0:02:03]} 62. Kc4 {[%clk 0:00:22]}  b3 {[%clk 0:02:03]} 63. Ra4 {[%clk 0:00:19]}  Rh2 {[%clk 0:02:01]} 64. Ra8 {[%clk 0:00:17]}  Rh4+ {[%clk 0:02:01]} 65. Kc3 {[%clk 0:00:17]}  Rh3+ {[%clk 0:02:01]} 66. Kd2 {[%clk 0:00:17]}  b2 {[%clk 0:02:02]} 0-1


[Site "https://www.chess.com"]

[Event "Titled Tuesday Blitz May 2 Late 2023"]
[White "Papayan, Oleg"]
[Black "Gabdushev, Ruslan"]
[WhiteFideId "4193911"]
[BlackFideId "4137833"]
[WhiteElo "2153"]
[BlackElo "2233"]
[Result "0-1"]
[Round "10"]
[TimeControl "180+2"]
[Date "2023.05.02"]
[WhiteClock "0:00:16"]
[BlackClock "0:00:56"]

1. e4 {[%clk 0:02:57]}  Nc6 {[%clk 0:02:59]} 2. Nf3 {[%clk 0:02:57]}  d6 {[%clk 0:02:58]} 3. d4 {[%clk 0:02:58]}  Bg4 {[%clk 0:02:58]} 4. d5 {[%clk 0:02:57]}  Nb8 {[%clk 0:02:57]} 5. Nc3 {[%clk 0:02:49]}  c6 {[%clk 0:02:55]} 6. h3 {[%clk 0:02:45]}  Bxf3 {[%clk 0:02:54]} 7. Qxf3 {[%clk 0:02:45]}  Nd7 {[%clk 0:02:53]} 8. Bf4 {[%clk 0:02:40]}  Ngf6 {[%clk 0:02:52]} 9. O-O-O {[%clk 0:02:38]}  Qb6 {[%clk 0:02:46]} 10. Bc4 {[%clk 0:02:30]}  g6 {[%clk 0:02:43]} 11. Rhe1 {[%clk 0:02:13]}  Ne5 {[%clk 0:02:34]} 12. Bxe5 {[%clk 0:02:10]}  dxe5 {[%clk 0:02:34]} 13. d6 {[%clk 0:02:10]}  Rd8 {[%clk 0:02:20]} 14. d7+ {[%clk 0:01:52]}  Rxd7 {[%clk 0:02:13]} 15. Bxf7+ {[%clk 0:01:40]}  Kd8 {[%clk 0:02:00]} 16. Be6 {[%clk 0:01:41]}  Bh6+ {[%clk 0:01:51]} 17. Kb1 {[%clk 0:01:41]}  Rxd1+ {[%clk 0:01:38]} 18. Rxd1+ {[%clk 0:01:42]}  Kc7 {[%clk 0:01:38]} 19. Qg3 {[%clk 0:01:03]}  Bf4 {[%clk 0:01:30]} 20. Qh4 {[%clk 0:01:02]}  Rd8 {[%clk 0:01:24]} 21. Rxd8 {[%clk 0:00:46]}  Kxd8 {[%clk 0:01:24]} 22. a4 {[%clk 0:00:35]}  Qd4 {[%clk 0:01:08]} 23. a5 {[%clk 0:00:22]}  h5 {[%clk 0:00:59]} 24. g4 {[%clk 0:00:16]}  g5 {[%clk 0:00:56]} 0-1


[Site "https://www.chess.com"]

[Event "Titled Tuesday Blitz May 2 Late 2023"]
[White "Ocelak, Jakub"]
[Black "Chemin, Justo Reinaldo"]
[WhiteFideId "23707933"]
[BlackFideId "2101580"]
[WhiteElo "2044"]
[BlackElo "1940"]
[Result "0-1"]
[Round "10"]
[TimeControl "180+2"]
[Date "2023.05.02"]
[WhiteClock "0:00:02"]
[BlackClock "0:00:13"]

1. b3 {[%clk 0:03:00]}  d6 {[%clk 0:02:58]} 2. Bb2 {[%clk 0:03:01]}  e5 {[%clk 0:02:58]} 3. c4 {[%clk 0:02:58]}  g6 {[%clk 0:02:58]} 4. g3 {[%clk 0:02:59]}  Bg7 {[%clk 0:02:58]} 5. Bg2 {[%clk 0:03:00]}  Ne7 {[%clk 0:02:58]} 6. Nc3 {[%clk 0:03:01]}  O-O {[%clk 0:02:58]} 7. e3 {[%clk 0:03:02]}  c6 {[%clk 0:02:58]} 8. Nge2 {[%clk 0:03:02]}  f5 {[%clk 0:02:55]} 9. O-O {[%clk 0:03:02]}  Be6 {[%clk 0:02:51]} 10. d4 {[%clk 0:03:01]}  e4 {[%clk 0:02:45]} 11. d5 {[%clk 0:02:47]}  Bf7 {[%clk 0:02:45]} 12. Nd4 {[%clk 0:02:39]}  cxd5 {[%clk 0:02:42]} 13. cxd5 {[%clk 0:02:38]}  Nxd5 {[%clk 0:02:25]} 14. Ndb5 {[%clk 0:02:32]}  Nxc3 {[%clk 0:02:21]} 15. Bxc3 {[%clk 0:02:30]}  Bxc3 {[%clk 0:02:20]} 16. Nxc3 {[%clk 0:02:31]}  d5 {[%clk 0:02:19]} 17. Qd2 {[%clk 0:02:30]}  Nc6 {[%clk 0:02:18]} 18. Rfd1 {[%clk 0:02:30]}  Ne7 {[%clk 0:02:12]} 19. Rac1 {[%clk 0:02:23]}  Qd7 {[%clk 0:02:10]} 20. Na4 {[%clk 0:02:21]}  b6 {[%clk 0:02:08]} 21. Bf1 {[%clk 0:02:18]}  Rfd8 {[%clk 0:02:07]} 22. Ba6 {[%clk 0:02:18]}  Rab8 {[%clk 0:01:54]} 23. Be2 {[%clk 0:02:15]}  Qe6 {[%clk 0:01:46]} 24. h4 {[%clk 0:02:04]}  Rbc8 {[%clk 0:01:44]} 25. Ba6 {[%clk 0:01:59]}  Rxc1 {[%clk 0:01:42]} 26. Rxc1 {[%clk 0:02:00]}  Qe5 {[%clk 0:01:38]} 27. Kg2 {[%clk 0:01:52]}  d4 {[%clk 0:01:36]} 28. exd4 {[%clk 0:01:50]}  Rxd4 {[%clk 0:01:35]} 29. Qc3 {[%clk 0:01:40]}  Nd5 {[%clk 0:01:26]} 30. Qc8+ {[%clk 0:01:33]}  Kg7 {[%clk 0:01:26]} 31. Nb2 {[%clk 0:01:10]}  e3 {[%clk 0:01:19]} 32. Nc4 {[%clk 0:01:10]}  Qe4+ {[%clk 0:01:17]} 33. f3 {[%clk 0:01:10]}  Qd3 {[%clk 0:01:08]} 34. Qb8 {[%clk 0:00:45]}  Nf6 {[%clk 0:00:55]} 35. Qe5 {[%clk 0:00:40]}  Qe2+ {[%clk 0:00:52]} 36. Kh3 {[%clk 0:00:38]}  Rd2 {[%clk 0:00:28]} 37. Nxd2 {[%clk 0:00:18]}  exd2 {[%clk 0:00:28]} 38. Qxe2 {[%clk 0:00:12]}  dxc1=Q {[%clk 0:00:27]} 39. Kg2 {[%clk 0:00:10]}  Qc5 {[%clk 0:00:25]} 40. a4 {[%clk 0:00:09]}  Qd6 {[%clk 0:00:25]} 41. Bd3 {[%clk 0:00:07]}  f4 {[%clk 0:00:23]} 42. g4 {[%clk 0:00:07]}  Nd5 {[%clk 0:00:22]} 43. Kh3 {[%clk 0:00:05]}  Ne3 {[%clk 0:00:21]} 44. Qb2+ {[%clk 0:00:04]}  Qf6 {[%clk 0:00:20]} 45. Qd2 {[%clk 0:00:02]}  h5 {[%clk 0:00:20]} 46. g5 {[%clk 0:00:02]}  Qe6+ {[%clk 0:00:19]} 47. Kh2 {[%clk 0:00:02]}  Qd5 {[%clk 0:00:18]} 48. Qe2 {[%clk 0:00:02]}  Qxb3 {[%clk 0:00:16]} 49. Be4 {[%clk 0:00:02]}  Qe6 {[%clk 0:00:16]} 50. Qb2+ {[%clk 0:00:01]}  Kh7 {[%clk 0:00:14]} 51. Qd4 {[%clk 0:00:02]}  Qa2+ {[%clk 0:00:13]} 0-1


[Site "https://www.chess.com"]

[Event "Titled Tuesday Blitz May 2 Late 2023"]
[White "Ricaurte Lopez, Juan Carlos"]
[Black "Kula, Robert"]
[WhiteFideId "3600327"]
[BlackFideId "1101218"]
[WhiteElo "2200"]
[BlackElo "2180"]
[Result "0-1"]
[Round "10"]
[TimeControl "180+2"]
[Date "2023.05.02"]
[WhiteClock "0:00:13"]
[BlackClock "0:00:53"]

1. e4 {[%clk 0:02:58]}  e5 {[%clk 0:02:58]} 2. d4 {[%clk 0:02:58]}  exd4 {[%clk 0:02:58]} 3. c3 {[%clk 0:02:58]}  dxc3 {[%clk 0:02:58]} 4. Nxc3 {[%clk 0:02:58]}  d6 {[%clk 0:02:58]} 5. Bc4 {[%clk 0:02:58]}  Be6 {[%clk 0:02:58]} 6. Bxe6 {[%clk 0:02:56]}  fxe6 {[%clk 0:02:58]} 7. Qb3 {[%clk 0:02:55]}  Qc8 {[%clk 0:02:55]} 8. Nf3 {[%clk 0:02:53]}  Nc6 {[%clk 0:02:54]} 9. Ng5 {[%clk 0:02:52]}  Nd8 {[%clk 0:02:50]} 10. f4 {[%clk 0:02:51]}  h6 {[%clk 0:02:50]} 11. Nf3 {[%clk 0:02:49]}  Nf6 {[%clk 0:02:50]} 12. O-O {[%clk 0:02:46]}  Be7 {[%clk 0:02:49]} 13. Kh1 {[%clk 0:02:40]}  O-O {[%clk 0:02:41]} 14. Be3 {[%clk 0:02:37]}  c6 {[%clk 0:02:36]} 15. f5 {[%clk 0:02:23]}  d5 {[%clk 0:02:32]} 16. fxe6 {[%clk 0:02:16]}  Qxe6 {[%clk 0:02:30]} 17. Rae1 {[%clk 0:02:15]}  dxe4 {[%clk 0:02:25]} 18. Qxe6+ {[%clk 0:02:11]}  Nxe6 {[%clk 0:02:25]} 19. Nd2 {[%clk 0:02:07]}  Ng4 {[%clk 0:02:19]} 20. Ncxe4 {[%clk 0:01:51]}  Nxe3 {[%clk 0:02:02]} 21. Rxe3 {[%clk 0:01:44]}  Rxf1+ {[%clk 0:02:02]} 22. Nxf1 {[%clk 0:01:44]}  Nc5 {[%clk 0:01:55]} 23. Neg3 {[%clk 0:01:23]}  Bf6 {[%clk 0:01:52]} 24. b3 {[%clk 0:01:21]}  Rd8 {[%clk 0:01:50]} 25. Re1 {[%clk 0:01:17]}  Nd3 {[%clk 0:01:49]} 26. Re2 {[%clk 0:01:12]}  Nc1 {[%clk 0:01:43]} 27. Rc2 {[%clk 0:01:09]}  Rd1 {[%clk 0:01:42]} 28. a4 {[%clk 0:00:41]}  Be5 {[%clk 0:01:42]} 29. Kg1 {[%clk 0:00:25]}  Nxb3 {[%clk 0:01:33]} 30. Kf2 {[%clk 0:00:22]}  Ra1 {[%clk 0:01:21]} 31. Ne3 {[%clk 0:00:17]}  Rxa4 {[%clk 0:01:15]} 32. Nef5 {[%clk 0:00:15]}  Nd4 {[%clk 0:01:03]} 33. Rd2 {[%clk 0:00:13]}  c5 {[%clk 0:00:55]} 34. Ne4 {[%clk 0:00:13]}  Nxf5 {[%clk 0:00:53]} 0-1


[Site "https://www.chess.com"]

[Event "Titled Tuesday Blitz May 2 Late 2023"]
[White "Fuentes Godoy, Lilia Ivonne"]
[Black "Gatterer, Florian"]
[WhiteFideId "5104130"]
[BlackFideId "811688"]
[WhiteElo "2096"]
[BlackElo "2221"]
[Result "1/2-1/2"]
[Round "10"]
[TimeControl "180+2"]
[Date "2023.05.02"]
[WhiteClock "0:00:50"]
[BlackClock "0:01:38"]

1. d4 {[%clk 0:03:00]}  d5 {[%clk 0:02:57]} 2. c4 {[%clk 0:03:01]}  e6 {[%clk 0:02:57]} 3. Nf3 {[%clk 0:03:01]}  a6 {[%clk 0:02:55]} 4. g3 {[%clk 0:03:01]}  dxc4 {[%clk 0:02:49]} 5. Bg2 {[%clk 0:03:01]}  b5 {[%clk 0:02:49]} 6. O-O {[%clk 0:03:01]}  Bb7 {[%clk 0:02:48]} 7. a4 {[%clk 0:03:01]}  Nd7 {[%clk 0:02:41]} 8. axb5 {[%clk 0:02:32]}  axb5 {[%clk 0:02:40]} 9. Rxa8 {[%clk 0:02:32]}  Qxa8 {[%clk 0:02:40]} 10. b3 {[%clk 0:02:32]}  Ngf6 {[%clk 0:02:33]} 11. bxc4 {[%clk 0:02:23]}  b4 {[%clk 0:02:34]} 12. Qb3 {[%clk 0:02:17]}  c5 {[%clk 0:02:29]} 13. Be3 {[%clk 0:01:35]}  Be7 {[%clk 0:02:10]} 14. Nbd2 {[%clk 0:01:20]}  O-O {[%clk 0:02:06]} 15. Qb2 {[%clk 0:00:57]}  cxd4 {[%clk 0:01:56]} 16. Bxd4 {[%clk 0:00:56]}  Bc5 {[%clk 0:01:50]} 17. Ra1 {[%clk 0:00:55]}  Qc8 {[%clk 0:01:50]} 18. Nb3 {[%clk 0:00:50]}  Bxd4 {[%clk 0:01:38]} 19. Qxd4 {[%clk 0:00:50]}  Rd8 {[%clk 0:01:38]} 1/2-1/2


[Site "https://www.chess.com"]

[Event "Titled Tuesday Blitz May 2 Late 2023"]
[White "Debray, Christopher"]
[Black "Panico, Nick"]
[WhiteFideId "630810"]
[BlackFideId "2026724"]
[WhiteElo "2340"]
[BlackElo "1982"]
[Result "1-0"]
[Round "10"]
[TimeControl "180+2"]
[Date "2023.05.02"]
[WhiteClock "0:00:12"]
[BlackClock "0:00:13"]

1. d4 {[%clk 0:02:50]}  f5 {[%clk 0:02:59]} 2. g3 {[%clk 0:02:49]}  Nf6 {[%clk 0:02:59]} 3. Bg2 {[%clk 0:02:50]}  g6 {[%clk 0:03:00]} 4. Nf3 {[%clk 0:02:50]}  Bg7 {[%clk 0:03:01]} 5. O-O {[%clk 0:02:50]}  O-O {[%clk 0:03:01]} 6. c4 {[%clk 0:02:50]}  d6 {[%clk 0:03:02]} 7. Nc3 {[%clk 0:02:51]}  Nc6 {[%clk 0:03:02]} 8. d5 {[%clk 0:02:32]}  Ne5 {[%clk 0:03:02]} 9. Nxe5 {[%clk 0:02:30]}  dxe5 {[%clk 0:03:02]} 10. e4 {[%clk 0:02:30]}  f4 {[%clk 0:03:02]} 11. gxf4 {[%clk 0:02:16]}  exf4 {[%clk 0:03:03]} 12. Bxf4 {[%clk 0:02:16]}  Nxe4 {[%clk 0:03:03]} 13. Bg3 {[%clk 0:01:39]}  Nxg3 {[%clk 0:02:54]} 14. fxg3 {[%clk 0:01:37]}  Rxf1+ {[%clk 0:02:46]} 15. Qxf1 {[%clk 0:01:35]}  Qd6 {[%clk 0:02:46]} 16. Re1 {[%clk 0:01:32]}  Bd7 {[%clk 0:02:44]} 17. Kh1 {[%clk 0:01:28]}  Rf8 {[%clk 0:02:43]} 18. Qe2 {[%clk 0:01:28]}  Bf6 {[%clk 0:02:42]} 19. Ne4 {[%clk 0:01:27]}  Qe5 {[%clk 0:02:35]} 20. Nxf6+ {[%clk 0:01:23]}  Qxf6 {[%clk 0:02:32]} 21. Qxe7 {[%clk 0:01:17]}  Bg4 {[%clk 0:02:27]} 22. Qxf6 {[%clk 0:00:58]}  Rxf6 {[%clk 0:02:28]} 23. h3 {[%clk 0:00:56]}  Bf3 {[%clk 0:02:16]} 24. Rf1 {[%clk 0:00:51]}  Bxg2+ {[%clk 0:02:14]} 25. Kxg2 {[%clk 0:00:52]}  Rb6 {[%clk 0:02:13]} 26. b3 {[%clk 0:00:51]}  a5 {[%clk 0:02:14]} 27. Rf3 {[%clk 0:00:49]}  a4 {[%clk 0:02:13]} 28. g4 {[%clk 0:00:47]}  Kg7 {[%clk 0:02:11]} 29. g5 {[%clk 0:00:47]}  Ra6 {[%clk 0:02:10]} 30. Kg3 {[%clk 0:00:46]}  b6 {[%clk 0:02:09]} 31. h4 {[%clk 0:00:42]}  a3 {[%clk 0:02:09]} 32. Re3 {[%clk 0:00:41]}  Kf7 {[%clk 0:02:08]} 33. Re6 {[%clk 0:00:40]}  Ra8 {[%clk 0:02:05]} 34. Kf4 {[%clk 0:00:39]}  Rd8 {[%clk 0:02:03]} 35. Ke5 {[%clk 0:00:38]}  Rd7 {[%clk 0:02:04]} 36. Kd4 {[%clk 0:00:33]}  Kg7 {[%clk 0:02:00]} 37. c5 {[%clk 0:00:24]}  bxc5+ {[%clk 0:01:53]} 38. Kxc5 {[%clk 0:00:25]}  Kf7 {[%clk 0:01:53]} 39. Ra6 {[%clk 0:00:23]}  Re7 {[%clk 0:01:51]} 40. Rxa3 {[%clk 0:00:22]}  Re4 {[%clk 0:01:51]} 41. Ra4 {[%clk 0:00:22]}  Re1 {[%clk 0:01:51]} 42. Kc6 {[%clk 0:00:21]}  Rd1 {[%clk 0:01:50]} 43. Rc4 {[%clk 0:00:19]}  Ke7 {[%clk 0:01:49]} 44. a4 {[%clk 0:00:18]}  Kd8 {[%clk 0:01:49]} 45. a5 {[%clk 0:00:18]}  Ra1 {[%clk 0:01:49]} 46. b4 {[%clk 0:00:18]}  Kc8 {[%clk 0:01:49]} 47. Kb5 {[%clk 0:00:17]}  Kd7 {[%clk 0:01:49]} 48. Rd4 {[%clk 0:00:17]}  Kd6 {[%clk 0:01:48]} 49. a6 {[%clk 0:00:17]}  Re1 {[%clk 0:01:47]} 50. Rc4 {[%clk 0:00:11]}  Re8 {[%clk 0:01:45]} 51. Rc6+ {[%clk 0:00:11]}  Kd7 {[%clk 0:01:46]} 52. a7 {[%clk 0:00:10]}  Ra8 {[%clk 0:01:44]} 53. Ka6 {[%clk 0:00:11]}  Kc8 {[%clk 0:01:44]} 54. Rf6 {[%clk 0:00:10]}  Kd7 {[%clk 0:01:45]} 55. Rb6 {[%clk 0:00:09]}  cxb6 {[%clk 0:01:45]} 56. Kb7 {[%clk 0:00:09]}  Rc8 {[%clk 0:01:40]} 57. a8=Q {[%clk 0:00:08]}  Rc7+ {[%clk 0:01:41]} 58. Kxb6 {[%clk 0:00:08]}  Kd6 {[%clk 0:01:40]} 59. Qd8+ {[%clk 0:00:07]}  Rd7 {[%clk 0:01:40]} 60. Qxd7+ {[%clk 0:00:07]}  Kxd7 {[%clk 0:01:41]} 61. Kc5 {[%clk 0:00:07]}  Kc7 {[%clk 0:01:42]} 62. b5 {[%clk 0:00:08]}  Kd7 {[%clk 0:01:43]} 63. b6 {[%clk 0:00:08]}  Kc8 {[%clk 0:01:44]} 64. d6 {[%clk 0:00:09]}  Kb7 {[%clk 0:01:45]} 65. Kb5 {[%clk 0:00:08]}  h5 {[%clk 0:01:46]} 66. gxh6 {[%clk 0:00:08]}  g5 {[%clk 0:01:46]} 67. hxg5 {[%clk 0:00:08]}  Kc8 {[%clk 0:01:46]} 68. Kc6 {[%clk 0:00:09]}  Kd8 {[%clk 0:01:47]} 69. h7 {[%clk 0:00:09]}  Ke8 {[%clk 0:01:46]} 70. h8=Q+ {[%clk 0:00:10]}  Kf7 {[%clk 0:01:47]} 71. Qf6+ {[%clk 0:00:10]}  Kg8 {[%clk 0:00:47]} 72. Qe7 {[%clk 0:00:11]}  Kh8 {[%clk 0:00:13]} 73. b7 {[%clk 0:00:12]} 1-0


[Site "https://www.chess.com"]

[Event "Titled Tuesday Blitz May 2 Late 2023"]
[White "Fajdetic, Hrvoje"]
[Black "Adel, Sara"]
[WhiteFideId "14501945"]
[BlackFideId "10616764"]
[WhiteElo "2185"]
[BlackElo "1982"]
[Result "1-0"]
[Round "10"]
[TimeControl "180+2"]
[Date "2023.05.02"]
[WhiteClock "0:00:35"]
[BlackClock "0:00:43"]

1. f4 {[%clk 0:02:55]}  Nf6 {[%clk 0:02:56]} 2. Nf3 {[%clk 0:02:53]}  d6 {[%clk 0:02:56]} 3. d3 {[%clk 0:02:53]}  Nc6 {[%clk 0:02:57]} 4. e4 {[%clk 0:02:53]}  e5 {[%clk 0:02:56]} 5. Be2 {[%clk 0:02:52]}  exf4 {[%clk 0:02:54]} 6. Bxf4 {[%clk 0:02:53]}  g6 {[%clk 0:02:55]} 7. O-O {[%clk 0:02:53]}  Bg7 {[%clk 0:02:54]} 8. Qd2 {[%clk 0:02:53]}  O-O {[%clk 0:02:54]} 9. Bh6 {[%clk 0:02:53]}  Ne5 {[%clk 0:02:53]} 10. Nc3 {[%clk 0:02:43]}  Nfg4 {[%clk 0:02:48]} 11. Bxg7 {[%clk 0:02:42]}  Kxg7 {[%clk 0:02:49]} 12. Nd5 {[%clk 0:02:34]}  c6 {[%clk 0:02:43]} 13. Nf4 {[%clk 0:02:20]}  f5 {[%clk 0:02:32]} 14. exf5 {[%clk 0:01:46]}  Bxf5 {[%clk 0:02:17]} 15. h3 {[%clk 0:01:40]}  Nxf3+ {[%clk 0:02:02]} 16. Bxf3 {[%clk 0:01:35]}  Ne5 {[%clk 0:02:03]} 17. d4 {[%clk 0:01:30]}  Nc4 {[%clk 0:01:42]} 18. Qc3 {[%clk 0:01:27]}  d5 {[%clk 0:01:39]} 19. Rae1 {[%clk 0:01:06]}  Qg5 {[%clk 0:01:38]} 20. Ne6+ {[%clk 0:00:55]}  Bxe6 {[%clk 0:01:38]} 21. Rxe6 {[%clk 0:00:56]}  Rae8 {[%clk 0:01:29]} 22. Rxe8 {[%clk 0:00:50]}  Rxe8 {[%clk 0:01:28]} 23. b3 {[%clk 0:00:50]}  Re3 {[%clk 0:01:16]} 24. Qb4 {[%clk 0:00:42]}  Nb6 {[%clk 0:00:52]} 25. Bxd5 {[%clk 0:00:36]}  cxd5 {[%clk 0:00:43]} 26. Qf8# {[%clk 0:00:35]} 1-0


[Site "https://www.chess.com"]

[Event "Titled Tuesday Blitz May 2 Late 2023"]
[White "Kapp, Martin"]
[Black "Fernandez Madrid, Carlos"]
[WhiteFideId "24651680"]
[BlackFideId "2206030"]
[WhiteElo "2177"]
[BlackElo "2082"]
[Result "0-1"]
[Round "10"]
[TimeControl "180+2"]
[Date "2023.05.02"]
[WhiteClock "0:00:02"]
[BlackClock "0:02:07"]

1. d4 {[%clk 0:02:58]}  Nf6 {[%clk 0:02:58]} 2. c4 {[%clk 0:02:58]}  b6 {[%clk 0:02:59]} 3. Nc3 {[%clk 0:02:56]}  Bb7 {[%clk 0:02:58]} 4. Nf3 {[%clk 0:02:55]}  d5 {[%clk 0:02:58]} 5. g3 {[%clk 0:02:49]}  dxc4 {[%clk 0:02:57]} 6. Bg2 {[%clk 0:02:49]}  a6 {[%clk 0:02:55]} 7. a4 {[%clk 0:02:44]}  e6 {[%clk 0:02:52]} 8. O-O {[%clk 0:02:43]}  Be7 {[%clk 0:02:50]} 9. Ne5 {[%clk 0:02:39]}  Bxg2 {[%clk 0:02:49]} 10. Kxg2 {[%clk 0:02:40]}  O-O {[%clk 0:02:50]} 11. Nxc4 {[%clk 0:02:39]}  c5 {[%clk 0:02:46]} 12. dxc5 {[%clk 0:02:07]}  Bxc5 {[%clk 0:02:45]} 13. Be3 {[%clk 0:01:49]}  Bxe3 {[%clk 0:02:42]} 14. Nxe3 {[%clk 0:01:47]}  Nc6 {[%clk 0:02:41]} 15. Qb3 {[%clk 0:01:36]}  Rb8 {[%clk 0:02:40]} 16. Rfd1 {[%clk 0:01:32]}  Qe7 {[%clk 0:02:39]} 17. Qa3 {[%clk 0:01:29]}  Nb4 {[%clk 0:02:37]} 18. Na2 {[%clk 0:01:26]}  a5 {[%clk 0:02:35]} 19. Nxb4 {[%clk 0:01:22]}  axb4 {[%clk 0:02:35]} 20. Qb3 {[%clk 0:01:19]}  h5 {[%clk 0:02:33]} 21. Rd4 {[%clk 0:01:15]}  Qb7+ {[%clk 0:02:28]} 22. f3 {[%clk 0:01:02]}  Nd5 {[%clk 0:02:23]} 23. Nxd5 {[%clk 0:00:43]}  exd5 {[%clk 0:02:23]} 24. Qxd5 {[%clk 0:00:32]}  Qe7 {[%clk 0:02:22]} 25. Qxh5 {[%clk 0:00:22]}  Qxe2+ {[%clk 0:02:21]} 26. Kh3 {[%clk 0:00:21]}  g6 {[%clk 0:02:12]} 27. Qg4 {[%clk 0:00:03]}  Kg7 {[%clk 0:02:08]} 28. Rxb4 {[%clk 0:00:02]}  Rh8+ {[%clk 0:02:08]} 29. Qh4 {[%clk 0:00:01]}  Rxh4+ {[%clk 0:02:08]} 30. gxh4 {[%clk 0:00:02]}  Qxf3# {[%clk 0:02:07]} 0-1


[Site "https://www.chess.com"]

[Event "Titled Tuesday Blitz May 2 Late 2023"]
[White "Smith, Shreyas"]
[Black "Torres Dominguez, David"]
[WhiteFideId "7400713"]
[BlackFideId "2220857"]
[WhiteElo "2151"]
[BlackElo "1999"]
[Result "0-1"]
[Round "10"]
[TimeControl "180+2"]
[Date "2023.05.02"]
[WhiteClock "0:00:01"]
[BlackClock "0:01:36"]

1. e4 {[%clk 0:03:00]}  Nc6 {[%clk 0:02:55]} 2. Nf3 {[%clk 0:02:59]}  e5 {[%clk 0:02:56]} 3. Bb5 {[%clk 0:02:58]}  Nge7 {[%clk 0:02:56]} 4. Nc3 {[%clk 0:02:56]}  g6 {[%clk 0:02:55]} 5. d4 {[%clk 0:02:51]}  exd4 {[%clk 0:02:55]} 6. Nd5 {[%clk 0:02:44]}  Bg7 {[%clk 0:02:53]} 7. Bg5 {[%clk 0:02:41]}  h6 {[%clk 0:02:52]} 8. Bf6 {[%clk 0:02:34]}  Bxf6 {[%clk 0:02:51]} 9. Nxf6+ {[%clk 0:02:34]}  Kf8 {[%clk 0:02:50]} 10. Nxd4 {[%clk 0:02:33]}  Nf5 {[%clk 0:02:49]} 11. Bxc6 {[%clk 0:00:38]}  Qxf6 {[%clk 0:02:28]} 12. exf5 {[%clk 0:00:29]}  dxc6 {[%clk 0:02:27]} 13. fxg6 {[%clk 0:00:20]}  Kg7 {[%clk 0:02:27]} 14. c3 {[%clk 0:00:14]}  Re8+ {[%clk 0:02:21]} 15. Kf1 {[%clk 0:00:14]}  Rd8 {[%clk 0:02:13]} 16. Qf3 {[%clk 0:00:13]}  c5 {[%clk 0:02:07]} 17. Qxf6+ {[%clk 0:00:11]}  Kxf6 {[%clk 0:02:07]} 18. Nf3 {[%clk 0:00:11]}  fxg6 {[%clk 0:02:00]} 19. h3 {[%clk 0:00:09]}  Be6 {[%clk 0:01:58]} 20. Kg1 {[%clk 0:00:05]}  Bd5 {[%clk 0:01:50]} 21. Nh2 {[%clk 0:00:03]}  Be6 {[%clk 0:01:41]} 22. Nf1 {[%clk 0:00:03]}  Rd3 {[%clk 0:01:37]} 23. Ne3 {[%clk 0:00:02]}  Rad8 {[%clk 0:01:36]} 24. Kh2 {[%clk 0:00:02]}  h5 {[%clk 0:01:36]} 25. Rhd1 {[%clk 0:00:01]}  Rd2 {[%clk 0:01:36]} 0-1


[Site "https://www.chess.com"]